bitfinex/quotes_BTCUSD_20230114
["timestamp","ask_amount","ask_price","bid_price","bid_amount"]
[1673718830310,0.1,20777.0,20774.0,0.02308634]
[1673718830556,2.14151688,20776.0,20772.0,0.28448003]
[1673718830806,0.48210828,20774.0,20772.0,0.28448003]
[1673718831075,2.24845759,20774.0,20772.0,0.28448003]
[1673718831287,3.10043423,20774.0,20773.0,0.70118323]
[1673718831536,2.66250785,20774.0,20773.0,0.70118323]
[1673718831787,3.21485993,20774.0,20773.0,0.70118323]
[1673718832028,3.70297373,20774.0,20773.0,0.70118323]
[1673718832262,2.80150476,20774.0,20773.0,0.68618323]
[1673718832512,1.87911445,20774.0,20773.0,0.68618323]
[1673718832743,2.19923245,20774.0,20773.0,0.68618323]
[1673718832999,2.51229886,20774.0,20773.0,0.68618323]
[1673718833246,2.83241715,20774.0,20773.0,0.68618323]
[1673718833482,2.81914236,20774.0,20773.0,0.68618323]
[1673718833721,2.83214901,20774.0,20773.0,0.68618323]
[1673718833960,2.53794604,20774.0,20773.0,0.68618323]
[1673718834211,1.77041511,20774.0,20773.0,0.68618323]
[1673718834465,2.83317597,20774.0,20773.0,0.68618323]
[1673718834695,1.98126297,20774.0,20773.0,0.68618323]
[1673718835051,1.77041511,20774.0,20773.0,0.68618323]
[1673718835319,1.98126432,20774.0,20773.0,0.68618323]
[1673718835568,1.98113485,20774.0,20773.0,0.68618323]
[1673718835822,2.29552716,20774.0,20773.0,0.68618323]
[1673718836080,3.24760478,20774.0,20773.0,0.68618323]
[1673718836354,2.48142576,20774.0,20773.0,0.68618323]
[1673718836618,1.83014351,20774.0,20773.0,0.68618323]
[1673718836920,0.014,20774.0,20773.0,1.12421787]
[1673718837168,0.014,20774.0,20773.0,1.37866123]
[1673718837438,0.62165812,20778.0,20773.0,1.65455746]
[1673718837692,0.62165812,20778.0,20774.0,0.19072595]
[1673718837957,0.9730435,20779.0,20775.0,0.40178395]
[1673718837958,0.14037412,20779.0,20775.0,0.40178395]
[1673718838222,0.14037412,20779.0,20776.0,0.19072595]
[1673718838474,0.35093951,20780.0,20775.0,0.18517545]
[1673718838736,0.004,20778.0,20776.0,0.66649845]
[1673718839013,0.13937412,20781.0,20776.0,0.962647]
[1673718839267,0.481189,20782.0,20777.0,0.43998102]
[1673718839551,0.00491285,20781.0,20777.0,0.962575]
[1673718839794,0.9729625,20785.0,20779.0,0.1297]
[1673718840225,0.0048586,20784.0,20779.0,1.092191]
[1673718840494,0.004,20782.0,20778.0,0.11728386]
[1673718840758,0.0048586,20784.0,20781.0,0.1292]
[1673718841006,0.00240329,20789.0,20781.0,0.1297]
[1673718841270,0.00240329,20789.0,20782.0,0.96237]
[1673718841519,0.00240329,20789.0,20783.0,0.25679269]
[1673718841777,0.00240329,20789.0,20784.0,0.481132]
[1673718842043,0.00240329,20789.0,20778.0,0.481272]
[1673718842044,0.79072595,20788.0,20778.0,0.481272]
[1673718842298,1.25288695,20787.0,20779.0,0.481237]
[1673718842625,0.19072595,20786.0,20778.0,0.481272]
[1673718842878,0.19072595,20785.0,20782.0,0.042]
[1673718843128,0.10240329,20789.0,20783.0,0.1297]
[1673718843392,0.013,20787.0,20783.0,0.481162]
[1673718843640,0.00240329,20789.0,20783.0,0.481162]
[1673718843901,0.00240329,20789.0,20786.0,0.1297]
[1673718844145,0.2594,20785.0,20784.0,1.1735]
[1673718844399,0.2594,20785.0,20784.0,0.610839]
[1673718844916,0.00240329,20789.0,20784.0,0.95834069]
[1673718845207,0.00240329,20789.0,20788.0,0.1296]
[1673718845415,0.00240329,20789.0,20788.0,1.091692]
[1673718845661,0.00340329,20789.0,20788.0,1.091692]
[1673718845908,0.00340329,20789.0,20788.0,1.221292]
[1673718845909,0.00240329,20789.0,20788.0,1.221292]
[1673718846160,0.00340329,20789.0,20788.0,1.221292]
[1673718846407,0.00240329,20789.0,20788.0,1.321292]
[1673718846652,0.00240329,20789.0,20788.0,1.318292]
[1673718846902,0.00240329,20789.0,20788.0,1.79549369]
[1673718847158,0.00240329,20789.0,20788.0,1.318292]
[1673718847159,0.19312924,20789.0,20788.0,1.318292]
[1673718847412,0.00240329,20789.0,20788.0,0.481046]
[1673718847663,0.00240329,20789.0,20788.0,0.620046]
[1673718847911,0.00240329,20789.0,20788.0,0.139]
[1673718848420,0.00240329,20789.0,20786.0,0.15154304]
[1673718848664,0.00240329,20789.0,20787.0,0.610466]
[1673718848665,0.18993336,20789.0,20787.0,0.610466]
[1673718848912,0.31093336,20789.0,20787.0,0.610466]
[1673718849159,0.18993336,20789.0,20787.0,0.610466]
[1673718849665,0.18993336,20789.0,20787.0,0.84313168]
[1673718849666,0.00240329,20789.0,20787.0,0.84313168]
[1673718849928,0.66792764,20788.0,20787.0,0.12720294]
[1673718850238,0.66792764,20788.0,20772.0,1.4121771]
[1673718850239,2.00700628,20788.0,20772.0,1.4121771]
[1673718850446,0.14174224,20778.0,20773.0,0.68637323]
[1673718850697,0.14174224,20775.0,20773.0,0.9248398]
[1673718850972,2.32064842,20779.0,20773.0,0.79946139]
[1673718850973,2.2497773,20779.0,20773.0,0.79946139]
[1673718851201,2.2497773,20779.0,20776.0,0.1383]
[1673718851202,0.19072595,20778.0,20776.0,0.1383]
[1673718851475,1.89542169,20779.0,20777.0,0.47720169]
[1673718851476,1.03702169,20779.0,20777.0,0.47720169]
[1673718851766,3.99931719,20784.0,20778.0,1.23021096]
[1673718852000,3.85757495,20784.0,20779.0,0.66792764]
[1673718852255,3.85757495,20784.0,20780.0,0.19072595]
[1673718852502,3.85757495,20784.0,20778.0,1.06688925]
[1673718852503,0.57217784,20779.0,20778.0,1.06688925]
[1673718852773,7.784e-05,20779.0,20778.0,0.4068853]
[1673718853022,7.784e-05,20779.0,20778.0,0.26935258]
[1673718853764,7.784e-05,20779.0,20778.0,0.28135258]
[1673718854031,0.01507784,20779.0,20778.0,0.012]
[1673718854277,0.09871784,20779.0,20778.0,0.012]
[1673718854523,0.72171508,20779.0,20778.0,0.012]
[1673718854780,2.37377348,20779.0,20778.0,0.012]
[1673718855032,3.08453281,20779.0,20778.0,0.012]
[1673718855402,0.56110804,20779.0,20778.0,0.012]
[1673718855557,0.61723714,20779.0,20778.0,0.002]
[1673718855817,1.50093613,20779.0,20778.0,0.002]
[1673718856087,2.7073816,20779.0,20778.0,0.002]
[1673718856342,0.00539271,20776.0,20773.0,0.66107139]
[1673718856596,0.75425123,20775.0,20773.0,0.66107139]
[1673718856829,1.16244683,20774.0,20773.0,0.66107139]
[1673718857328,0.920132,20774.0,20773.0,0.66107139]
[1673718857579,0.74231483,20774.0,20773.0,0.66107139]
[1673718858078,0.35578708,20775.0,20773.0,0.85379734]
[1673718858322,0.00539271,20776.0,20773.0,0.85179734]
[1673718858569,0.00539271,20776.0,20774.0,0.24480689]
[1673718858819,0.14770754,20776.0,20774.0,0.24480689]
[1673718859078,0.13770754,20776.0,20774.0,0.49069243]
[1673718859332,0.13770754,20776.0,20773.0,0.66107139]
[1673718859589,0.33515169,20776.0,20774.0,0.002]
[1673718859905,3.04964042,20775.0,20774.0,0.002]
[1673718860109,2.69385334,20775.0,20774.0,0.002]
[1673718860865,3.12081052,20775.0,20774.0,0.002]
[1673718861115,3.12081052,20775.0,20773.0,0.66107139]
[1673718861116,2.79460938,20775.0,20773.0,0.66107139]
[1673718861368,2.72229733,20774.0,20773.0,0.66107139]
[1673718861875,2.52590327,20774.0,20773.0,0.89039184]
[1673718862144,0.320132,20774.0,20773.0,0.82874053]
[1673718862401,0.21102,20774.0,20773.0,0.82874053]
[1673718862637,0.016,20774.0,20773.0,0.66307139]
[1673718862884,1.07514046,20774.0,20773.0,0.66307139]
[1673718863134,2.89138464,20774.0,20773.0,0.66307139]
[1673718863387,2.89139839,20774.0,20773.0,0.66307139]
[1673718863634,2.5904087,20774.0,20773.0,0.66107139]
[1673718863875,2.89138669,20774.0,20773.0,0.66307139]
[1673718864143,2.87538669,20774.0,20773.0,0.66107139]
[1673718864414,2.88538669,20774.0,20773.0,0.66307139]
[1673718864671,2.56525469,20774.0,20773.0,0.66307139]
[1673718864941,2.6004087,20774.0,20773.0,0.66307139]
[1673718865180,2.6004087,20774.0,20773.0,0.002]
[1673718865679,2.88536361,20774.0,20773.0,0.002]
[1673718866180,2.6004087,20774.0,20773.0,0.002]
[1673718866445,2.77625885,20774.0,20773.0,0.002]
[1673718866713,0.50868398,20774.0,20773.0,0.002]
[1673718866963,0.50868398,20774.0,20773.0,0.74727539]
[1673718866964,0.01,20774.0,20773.0,0.74727539]
[1673718867973,0.01,20774.0,20773.0,1.77091564]
[1673718868227,0.01,20774.0,20773.0,1.88018969]
[1673718868228,0.0001,20774.0,20773.0,1.88018969]
[1673718868466,0.0001,20774.0,20773.0,2.11853787]
[1673718868722,0.21372183,20780.0,20773.0,2.11853787]
[1673718868723,0.21372183,20780.0,20773.0,2.11653787]
[1673718868999,0.50146322,20781.0,20776.0,0.1378]
[1673718869269,0.14255308,20780.0,20777.0,2.11179464]
[1673718869500,0.14255308,20780.0,20778.0,0.14930826]
[1673718869755,0.50146322,20781.0,20779.0,2.05976669]
[1673718869756,0.00277924,20781.0,20779.0,2.05976669]
[1673718870038,0.00277924,20781.0,20779.0,2.25049264]
[1673718870269,0.00277924,20781.0,20780.0,0.23834818]
[1673718870590,0.53348372,20781.0,20779.0,0.96251]
[1673718870776,0.53348372,20781.0,20773.0,0.02495119]
[1673718870777,0.72144641,20780.0,20772.0,0.02189707]
[1673718871043,0.21380497,20773.0,20772.0,0.02189707]
[1673718871291,1.39264944,20773.0,20772.0,0.02189707]
[1673718871555,0.6,20773.0,20772.0,0.53222586]
[1673718872054,0.6,20773.0,20772.0,0.51860811]
[1673718872314,40.78744415,20773.0,20772.0,0.03719111]
[1673718872567,40.6,20773.0,20771.0,0.21135464]
[1673718873374,40.87541457,20773.0,20769.0,0.5057672]
[1673718873580,0.1,20771.0,20769.0,0.0242832]
[1673718873869,0.28744415,20771.0,20769.0,0.0242832]
[1673718874099,0.22003097,20772.0,20769.0,0.0242832]
[1673718874395,0.22003097,20772.0,20771.0,0.059]
[1673718874618,40.0,20773.0,20771.0,0.19072595]
[1673718874881,39.9182792,20773.0,20772.0,0.19662595]
[1673718875150,39.9182792,20773.0,20772.0,0.24256199]
[1673718875392,39.9182792,20773.0,20772.0,1.20539599]
[1673718875678,39.9182792,20773.0,20772.0,1.50539599]
[1673718875909,39.9182792,20773.0,20772.0,1.98681299]
[1673718875910,39.9302792,20773.0,20772.0,1.98681299]
[1673718876161,39.9302792,20773.0,20772.0,2.16211836]
[1673718876411,39.88615825,20773.0,20772.0,2.44892927]
[1673718876688,39.84119169,20773.0,20772.0,2.74892927]
[1673718876961,39.45943525,20773.0,20772.0,2.6471636]
[1673718877224,38.73873525,20773.0,20772.0,2.6471636]
[1673718877462,36.42136878,20773.0,20772.0,2.6781636]
[1673718877731,36.42136878,20773.0,20772.0,2.65976245]
[1673718877732,36.17754278,20773.0,20772.0,2.65976245]
[1673718877986,35.64405378,20773.0,20772.0,2.36035269]
[1673718878280,34.60596578,20773.0,20772.0,2.50035269]
[1673718878488,33.57082078,20773.0,20772.0,2.34923272]
[1673718878738,32.51597878,20773.0,20772.0,2.35773272]
[1673718879011,31.35923578,20773.0,20772.0,2.49773272]
[1673718879253,31.04406778,20773.0,20772.0,2.62623457]
[1673718879757,30.26519678,20773.0,20772.0,2.35773272]
[1673718880007,29.75101378,20773.0,20772.0,2.35773272]
[1673718880241,29.25596378,20773.0,20772.0,9.35773272]
[1673718880492,28.74344278,20773.0,20772.0,9.35773272]
[1673718880994,28.74344278,20773.0,20772.0,9.58555275]
[1673718881214,28.74344278,20773.0,20772.0,2.05033272]
[1673718881215,28.74444278,20773.0,20772.0,2.05033272]
[1673718882447,29.01758446,20773.0,20772.0,1.56891572]
[1673718882693,28.74444278,20773.0,20772.0,1.56891572]
[1673718882930,28.73444278,20773.0,20772.0,1.93892111]
[1673718883887,28.73444278,20773.0,20772.0,2.23892111]
[1673718886416,26.92669733,20773.0,20772.0,2.00671572]
[1673718886665,25.78761233,20773.0,20772.0,9.24131455]
[1673718886917,24.98326033,20773.0,20772.0,7.38431933]
[1673718887161,24.25467333,20773.0,20772.0,7.38431933]
[1673718887410,24.25467333,20773.0,20772.0,7.5980889]
[1673718887411,21.82039733,20773.0,20772.0,7.5980889]
[1673718887650,20.08050233,20773.0,20772.0,7.58197388]
[1673718887893,19.20978133,20773.0,20772.0,10.58197388]
[1673718888146,18.11221033,20773.0,20772.0,10.58197388]
[1673718888391,17.43741133,20773.0,20772.0,10.85047573]
[1673718888637,16.78985533,20773.0,20772.0,10.42022089]
[1673718888889,16.78985533,20773.0,20772.0,5.94729955]
[1673718889144,16.78985533,20773.0,20772.0,1.94729955]
[1673718889651,16.78985533,20773.0,20772.0,1.69018247]
[1673718890125,16.78985533,20773.0,20772.0,2.9894599]
[1673718890615,16.78985533,20773.0,20772.0,3.25107009]
[1673718890873,16.78985533,20773.0,20772.0,3.24726581]
[1673718891360,16.77985533,20773.0,20772.0,3.24726581]
[1673718892884,16.77985533,20773.0,20772.0,3.25576581]
[1673718893378,16.77985533,20773.0,20772.0,3.14210548]
[1673718893666,16.77985533,20773.0,20772.0,2.99868247]
[1673718893904,14.45672537,20773.0,20772.0,3.87707722]
[1673718894166,12.86772937,20773.0,20772.0,8.81967857]
[1673718894410,11.53657337,20773.0,20772.0,9.44994523]
[1673718894716,10.34835937,20773.0,20772.0,9.31670995]
[1673718894949,9.49973537,20773.0,20772.0,9.46458659]
[1673718895201,9.49973537,20773.0,20772.0,8.07680291]
[1673718895456,9.49973537,20773.0,20772.0,2.85072279]
[1673718896728,9.49973537,20773.0,20772.0,1.84222279]
[1673718897472,9.49973537,20773.0,20772.0,2.84222279]
[1673718897947,9.49973537,20773.0,20772.0,20.84222279]
[1673718898183,9.49973537,20773.0,20772.0,21.84222279]
[1673718898424,9.49973537,20773.0,20772.0,22.14222279]
[1673718898661,9.49973537,20773.0,20772.0,21.85238247]
[1673718899921,9.49973537,20773.0,20772.0,22.10626575]
[1673718900739,9.49973537,20773.0,20772.0,21.85238247]
[1673718901008,9.49973537,20773.0,20772.0,22.07580518]
[1673718901271,9.49973537,20773.0,20772.0,21.55238247]
[1673718901272,10.28717952,20773.0,20772.0,21.55238247]
[1673718901542,10.09973537,20773.0,20772.0,21.55238247]
[1673718901809,10.34616337,20773.0,20772.0,21.55238247]
[1673718902336,10.09873537,20773.0,20772.0,21.41238247]
[1673718902596,10.09973537,20773.0,20772.0,21.51438247]
[1673718902853,10.09973537,20773.0,20772.0,21.03296547]
[1673718903669,10.09973537,20773.0,20772.0,21.03138122]
[1673718903901,10.09973537,20773.0,20772.0,21.51279822]
[1673718904686,10.37680846,20773.0,20772.0,20.102]
[1673718905217,10.37680846,20773.0,20772.0,17.102]
[1673718906771,0.7582175,20771.0,20769.0,0.0242832]
[1673718907028,0.7582175,20771.0,20770.0,0.21615324]
[1673718907284,1.3582175,20771.0,20770.0,0.21615324]
[1673718907789,1.3692175,20771.0,20770.0,0.21615324]
[1673718908054,1.3692175,20771.0,20770.0,0.66792764]
[1673718908316,1.3692175,20771.0,20770.0,1.74012769]
[1673718908317,1.3582175,20771.0,20770.0,1.74012769]
[1673718908576,1.3692175,20771.0,20770.0,1.81012769]
[1673718909347,1.3692175,20771.0,20770.0,1.95358045]
[1673718909609,1.3692175,20771.0,20770.0,2.16875334]
[1673718909863,1.3692175,20771.0,20770.0,1.95358045]
[1673718910122,1.3692175,20771.0,20770.0,5.45916466]
[1673718910375,1.3692175,20771.0,20770.0,2.24399177]
[1673718910893,1.3692175,20771.0,20770.0,2.10053901]
[1673718911679,1.3692175,20771.0,20770.0,2.24399177]
[1673718912974,1.3692175,20771.0,20770.0,2.45916466]
[1673718913762,1.3692175,20771.0,20770.0,2.4095128]
[1673718914035,1.3692175,20771.0,20770.0,2.2657119]
[1673718914291,1.3692175,20771.0,20770.0,2.04704742]
[1673718914545,1.3692175,20771.0,20770.0,2.62046672]
[1673718914808,1.3692175,20771.0,20770.0,1.83904905]
[1673718915053,1.3692175,20771.0,20770.0,2.19326503]
[1673718915575,1.3692175,20771.0,20770.0,1.9063453]
[1673718916351,1.3692175,20771.0,20770.0,2.19402284]
[1673718917135,1.3692175,20771.0,20770.0,2.19400993]
[1673718917400,1.3692175,20771.0,20770.0,1.9063453]
[1673718917664,0.7692175,20771.0,20770.0,2.35506962]
[1673718917934,0.2580495,20771.0,20770.0,1.81862769]
[1673718918176,9.49873537,20773.0,20771.0,0.1]
[1673718918439,9.49873537,20773.0,20772.0,2.06875269]
[1673718918695,9.49873537,20773.0,20772.0,2.46875269]
[1673718919218,9.49873537,20773.0,20772.0,2.90021409]
[1673718919757,9.25299037,20773.0,20772.0,3.12435786]
[1673718920028,8.02027637,20773.0,20772.0,9.12435786]
[1673718920271,8.02027637,20773.0,20772.0,11.12435786]
[1673718920272,7.00364037,20773.0,20772.0,11.12435786]
[1673718920515,7.00364037,20773.0,20772.0,10.69289646]
[1673718920516,6.25055737,20773.0,20772.0,10.69289646]
[1673718920791,6.25055737,20773.0,20772.0,10.96481083]
[1673718920792,4.93959837,20773.0,20772.0,10.96481083]
[1673718921054,3.77759037,20773.0,20772.0,11.10481083]
[1673718921318,2.56500837,20773.0,20772.0,10.99981083]
[1673718921556,1.20646537,20773.0,20772.0,11.64216026]
[1673718921836,2.21122536,20776.0,20773.0,0.1]
[1673718922055,2.21122536,20776.0,20775.0,0.24067]
[1673718922311,1.61122536,20776.0,20775.0,2.08056569]
[1673718922560,1.61122536,20776.0,20775.0,11.08906569]
[1673718923324,1.61122536,20776.0,20775.0,10.84839569]
[1673718923587,1.61122536,20776.0,20775.0,10.91439569]
[1673718923831,1.61122536,20776.0,20775.0,10.84839569]
[1673718924094,1.61122536,20776.0,20775.0,10.98839569]
[1673718924851,1.61122536,20776.0,20775.0,11.41971227]
[1673718925120,1.61122536,20776.0,20775.0,10.98839569]
[1673718925376,1.61122536,20776.0,20775.0,12.06400051]
[1673718925681,0.6,20779.0,20776.0,0.1]
[1673718925894,0.6,20779.0,20777.0,2.08875836]
[1673718926155,0.6,20779.0,20778.0,0.87720169]
[1673718926428,0.00236504,20783.0,20779.0,0.6]
[1673718926429,0.18049004,20783.0,20779.0,0.6]
[1673718926677,0.18049004,20783.0,20780.0,2.98148965]
[1673718926984,0.18049004,20783.0,20782.0,0.35912582]
[1673718927190,0.18049004,20783.0,20782.0,3.06640987]
[1673718927445,0.18049004,20783.0,20782.0,2.87568427]
[1673718927725,0.18049004,20783.0,20782.0,2.44455524]
[1673718927963,0.18049004,20783.0,20782.0,4.73582547]
[1673718928218,0.18049004,20783.0,20782.0,1.73582547]
[1673718928474,0.18049004,20783.0,20782.0,1.92925669]
[1673718928731,0.18049004,20783.0,20782.0,2.57568427]
[1673718928985,0.18049004,20783.0,20782.0,2.71458427]
[1673718929238,0.18049004,20783.0,20782.0,9.72928251]
[1673718929492,0.18049004,20783.0,20782.0,8.72928251]
[1673718929746,0.18049004,20783.0,20782.0,8.58523893]
[1673718930001,0.18049004,20783.0,20782.0,9.87201525]
[1673718930255,0.18049004,20783.0,20782.0,10.01105883]
[1673718930517,0.178125,20785.0,20782.0,10.01105883]
[1673718930804,0.178125,20785.0,20784.0,1.07620023]
[1673718931045,0.178125,20785.0,20784.0,3.56897028]
[1673718931303,0.178125,20785.0,20784.0,8.78473781]
[1673718931570,0.178125,20785.0,20784.0,8.71289214]
[1673718931799,0.178125,20785.0,20784.0,5.56966869]
[1673718932298,0.178125,20785.0,20784.0,5.32911869]
[1673718932299,0.21381735,20785.0,20784.0,5.32911869]
[1673718932559,0.21381735,20785.0,20784.0,5.27640293]
[1673718932810,0.21381735,20785.0,20784.0,5.27790293]
[1673718933070,0.21381735,20785.0,20784.0,5.03061869]
[1673718933853,0.21381735,20785.0,20784.0,5.27483362]
[1673718935699,0.21381735,20785.0,20784.0,5.57483362]
[1673718936222,0.21381735,20785.0,20784.0,4.453417]
[1673718936487,0.21381735,20785.0,20784.0,9.491139]
[1673718936488,0.59066195,20785.0,20784.0,9.491139]
[1673718936776,0.59066195,20785.0,20784.0,0.01]
[1673718937002,0.42563195,20785.0,20784.0,9.01]
[1673718937529,0.21381735,20785.0,20784.0,8.01]
[1673718938311,0.21381735,20785.0,20784.0,8.972278]
[1673718938841,0.21381735,20785.0,20784.0,9.49511831]
[1673718939358,0.21381735,20785.0,20784.0,9.19511831]
[1673718939598,0.42987308,20785.0,20784.0,8.972278]
[1673718940145,0.21381735,20785.0,20784.0,9.972278]
[1673718940401,0.21381735,20785.0,20784.0,0.972278]
[1673718940655,0.21381735,20785.0,20784.0,8.972278]
[1673718940921,0.21381735,20785.0,20784.0,0.93508207]
[1673718941186,0.21381735,20785.0,20784.0,8.93508207]
[1673718941448,0.21381735,20785.0,20784.0,0.93508207]
[1673718941703,0.21381735,20785.0,20784.0,8.93508207]
[1673718942213,0.21381735,20785.0,20784.0,9.93508207]
[1673718942738,0.21381735,20785.0,20784.0,0.93508207]
[1673718942992,0.21381735,20785.0,20784.0,8.93508207]
[1673718943758,0.21381735,20785.0,20784.0,9.93508207]
[1673718944019,0.21381735,20785.0,20784.0,10.166772]
[1673718944286,0.21381735,20785.0,20784.0,10.23508207]
[1673718944806,0.21381735,20785.0,20784.0,10.49689878]
[1673718945311,0.21381735,20785.0,20784.0,10.23508207]
[1673718945566,0.21381735,20785.0,20784.0,10.71228376]
[1673718946848,0.21881735,20785.0,20784.0,10.95644393]
[1673718947094,0.21881735,20785.0,20784.0,10.96194393]
[1673718947349,0.21881735,20785.0,20784.0,10.80194393]
[1673718947611,0.21881735,20785.0,20784.0,11.10194393]
[1673718948128,0.21381735,20785.0,20784.0,10.96194393]
[1673718948382,0.21381735,20785.0,20784.0,11.09594393]
[1673718949936,0.21381735,20785.0,20784.0,10.85478376]
[1673718950213,0.21381735,20785.0,20784.0,10.83824019]
[1673718951004,0.21381735,20785.0,20784.0,11.11791945]
[1673718951538,0.21381735,20785.0,20784.0,10.83824019]
[1673718952020,0.21381735,20785.0,20784.0,11.05646203]
[1673718952296,0.21381735,20785.0,20784.0,10.83824019]
[1673718952848,0.03569235,20785.0,20784.0,11.09311161]
[1673718953093,0.21381735,20785.0,20784.0,11.09311161]
[1673718953341,0.21381735,20785.0,20784.0,11.08336929]
[1673718953598,0.03069235,20785.0,20784.0,10.83824019]
[1673718953857,0.20881735,20785.0,20784.0,10.83824019]
[1673718954387,0.20881735,20785.0,20784.0,11.09483779]
[1673718954914,0.20381735,20785.0,20784.0,10.83824019]
[1673718955160,0.20381735,20785.0,20784.0,11.09548566]
[1673718955673,0.20381735,20785.0,20784.0,11.1135807]
[1673718958518,0.20381735,20785.0,20784.0,10.32787901]
[1673718959550,0.20381735,20785.0,20784.0,10.1566909]
[1673718959821,0.20481735,20785.0,20784.0,10.2976909]
[1673718960079,0.20381735,20785.0,20784.0,10.1566909]
[1673718960326,0.20381735,20785.0,20784.0,10.1576909]
[1673718960840,0.20381735,20785.0,20784.0,10.4576909]
[1673718962600,0.20381735,20785.0,20784.0,10.18235039]
[1673718962854,0.20381735,20785.0,20784.0,10.6024602]
[1673718964116,0.20381735,20785.0,20784.0,10.39741951]
[1673718964372,0.20381735,20785.0,20784.0,10.47760922]
[1673718964892,0.20381735,20785.0,20784.0,10.83673504]
[1673718965140,0.20381735,20785.0,20784.0,11.0271779]
[1673718965658,0.20381735,20785.0,20784.0,11.09902109]
[1673718966170,0.20381735,20785.0,20784.0,10.66805208]
[1673718968512,0.20381735,20785.0,20784.0,11.0844655]
[1673718970364,0.00269967,20790.0,20784.0,11.27519145]
[1673718970621,0.00269967,20790.0,20789.0,0.2879657]
[1673718970978,0.00269967,20790.0,20789.0,0.66792764]
[1673718971128,0.00269967,20790.0,20789.0,3.33246819]
[1673718971388,0.00269967,20790.0,20789.0,3.88594084]
[1673718971652,0.00239891,20791.0,20789.0,9.41746634]
[1673718971910,0.00239891,20791.0,20790.0,0.93930169]
[1673718972179,0.00239891,20791.0,20790.0,5.07670169]
[1673718972440,0.00239891,20791.0,20790.0,6.03870169]
[1673718972716,9.1e-07,20791.0,20790.0,9.0999045]
[1673718972979,0.00269967,20792.0,20790.0,8.66836231]
[1673718973217,0.001,20791.0,20790.0,3.27656062]
[1673718973527,0.00269967,20792.0,20791.0,6.1542]
[1673718973730,0.00269967,20792.0,20791.0,6.65921849]
[1673718974004,0.00269967,20792.0,20791.0,7.424654]
[1673718974281,0.00269967,20792.0,20791.0,7.78386838]
[1673718974523,0.00269967,20792.0,20791.0,7.424654]
[1673718974777,0.00269967,20792.0,20791.0,7.78360557]
[1673718975049,0.00269967,20792.0,20791.0,7.97712675]
[1673718975587,0.00347037,20793.0,20791.0,8.11712675]
[1673718975831,0.00264415,20796.0,20792.0,1.66928723]
[1673718976109,0.00264415,20796.0,20795.0,0.22065008]
[1673718976365,0.00264415,20796.0,20795.0,1.10635177]
[1673718976613,0.00264415,20796.0,20795.0,2.53900377]
[1673718977130,0.00264415,20796.0,20795.0,2.40545369]
[1673718977655,0.00364415,20796.0,20795.0,2.40545369]
[1673718977921,0.00432514,20799.0,20795.0,2.40545369]
[1673718977922,1.083,20804.0,20795.0,2.40545369]
[1673718977923,0.3563158,20807.0,20795.0,3.27685254]
[1673718978220,0.3563158,20807.0,20798.0,0.47720169]
[1673718978221,0.29144408,20805.0,20798.0,0.47720169]
[1673718978477,0.23013815,20804.0,20799.0,1.16981705]
[1673718978779,1.9848,20809.0,20799.0,1.16981705]
[1673718978780,0.22904246,20803.0,20801.0,1.442238]
[1673718978989,1.9848,20809.0,20801.0,1.442238]
[1673718978990,1.9848,20809.0,20802.0,0.3]
[1673718979239,1.9848,20809.0,20803.0,0.19072595]
[1673718979240,0.28774486,20808.0,20803.0,0.19072595]
[1673718979482,0.21144486,20808.0,20804.0,1.25710164]
[1673718979736,0.21144486,20808.0,20805.0,0.49072595]
[1673718979995,0.21144486,20808.0,20806.0,0.96126]
[1673718981032,0.21144486,20808.0,20807.0,0.3]
[1673718981302,0.00363183,20810.0,20806.0,0.95893486]
[1673718981303,0.0771,20809.0,20806.0,0.95893486]
[1673718981561,0.0771,20809.0,20807.0,0.480607]
[1673718981839,0.29416883,20808.0,20807.0,0.480607]
[1673718982866,0.29416883,20808.0,20806.0,0.95893486]
[1673718982867,0.29416883,20808.0,20806.0,0.47830486]
[1673718983129,0.29416883,20808.0,20807.0,0.480607]
[1673718983654,0.29416883,20808.0,20807.0,0.489607]
[1673718983969,0.29416883,20808.0,20807.0,0.480607]
[1673718984153,0.31467203,20808.0,20807.0,0.480607]
[1673718984665,0.31467203,20808.0,20807.0,0.489607]
[1673718985948,0.31467203,20808.0,20807.0,0.009]
[1673718986464,0.46837203,20808.0,20807.0,0.009]
[1673718986724,2.16474535,20808.0,20800.0,3.15675]
[1673718986982,0.02699999,20805.0,20800.0,2.9566641]
[1673718987241,0.21444414,20805.0,20804.0,0.24278096]
[1673718987508,0.02699999,20805.0,20801.0,0.1]
[1673718987770,0.02699999,20805.0,20804.0,0.480676]
[1673718988581,0.04199999,20805.0,20804.0,0.480676]
[1673718988839,0.02699999,20805.0,20804.0,1.261352]
[1673718989138,0.02699999,20805.0,20804.0,1.22198316]
[1673718989398,0.02699999,20805.0,20804.0,1.52198316]
[1673718989957,0.11199999,20805.0,20804.0,1.22698316]
[1673718990210,0.11199999,20805.0,20804.0,1.52698316]
[1673718990507,0.11199999,20805.0,20804.0,1.22698316]
[1673718990761,0.61847414,20805.0,20804.0,0.005]
[1673718991016,0.61847414,20805.0,20800.0,0.28593625]
[1673718991017,1.17837036,20805.0,20801.0,0.22924744]
[1673718991264,0.320132,20804.0,20802.0,0.22003394]
[1673718991547,1.05468451,20805.0,20802.0,0.22003394]
[1673718991791,1.00325936,20805.0,20804.0,0.005]
[1673718992055,1.36272499,20805.0,20804.0,0.005]
[1673718992315,1.68285699,20805.0,20804.0,0.005]
[1673718992583,1.75945699,20805.0,20804.0,0.005]
[1673718993096,1.83973019,20805.0,20800.0,0.22053929]
[1673718993346,0.136,20804.0,20802.0,0.005]
[1673718993612,0.1534,20803.0,20800.0,0.89203324]
[1673718993877,0.0771,20801.0,20800.0,0.480768]
[1673718994627,0.0771,20801.0,20800.0,0.485768]
[1673718994890,0.0771,20801.0,20800.0,0.480768]
[1673718995160,0.0771,20801.0,20800.0,0.780768]
[1673718995400,0.0771,20801.0,20800.0,0.480768]
[1673718995925,0.0771,20801.0,20800.0,0.780768]
[1673718996171,0.2131,20801.0,20800.0,0.785768]
[1673718996438,0.2131,20801.0,20800.0,1.01739633]
[1673718996959,0.2131,20801.0,20800.0,0.71739633]
[1673718998236,0.2131,20801.0,20800.0,1.01739633]
[1673718998493,0.2131,20801.0,20800.0,0.71739633]
[1673718998734,0.136,20801.0,20800.0,1.49816533]
[1673718998990,0.136,20801.0,20800.0,1.49672514]
[1673718999244,0.136,20801.0,20800.0,1.366537]
[1673718999495,0.39476676,20805.0,20800.0,1.361537]
[1673718999751,0.39476676,20805.0,20801.0,0.77735443]
[1673719000000,0.39476676,20805.0,20802.0,0.961436]
[1673719000525,0.23026876,20804.0,20802.0,0.961436]
[1673719000785,0.23026876,20804.0,20802.0,0.480718]
[1673719001050,0.23026876,20804.0,20801.0,0.480724]